bitfinex-derivatives/quotes_ETHF0:USTF0_20260312
["timestamp","ask_amount","ask_price","bid_price","bid_amount"]
[1773342051819,0.59087298,2051.9,2051.0,0.57199918]
[1773342052826,3.44554266,2051.9,2051.0,0.022]
[1773342053031,0.59087298,2051.6,2051.0,0.022]
[1773342053331,3.48954266,2051.6,2050.8,0.022]
[1773342053526,0.59087298,2051.5,2050.6,0.02801647]
[1773342053731,0.59087298,2051.2,2050.2,0.57199918]
[1773342053931,0.59087298,2051.2,2050.3,0.54999918]
[1773342054429,0.83459298,2051.4,2050.4,0.57199918]
[1773342054629,0.59087298,2051.3,2050.4,0.57199918]
[1773342054821,0.59087298,2051.3,2050.4,0.57737638]
[1773342055929,0.59087298,2051.2,2050.4,0.57737638]
[1773342056326,10.95217583,2052.0,2051.1,0.54999918]
[1773342056327,0.59662207,2052.0,2051.1,0.54999918]
[1773342056730,0.59662207,2052.0,2050.7,0.54999918]
[1773342057325,0.59087298,2051.9,2050.7,0.54999918]
[1773342057823,0.59087298,2051.9,2050.8,0.54999918]
[1773342058028,0.59662207,2052.0,2050.8,0.54999918]
[1773342058428,0.00574909,2052.0,2051.1,0.54999918]
[1773342058631,0.59662207,2052.0,2051.1,0.54999918]
[1773342059023,0.00574909,2052.0,2051.1,0.54999918]
[1773342059622,0.59662207,2052.0,2051.1,0.54999918]
[1773342059827,0.00574909,2052.0,2051.1,0.54999918]
[1773342060330,0.00574909,2052.0,2051.1,3.40466886]
[1773342060627,0.00574909,2052.0,2051.2,0.54999918]
[1773342060934,0.00574909,2052.0,2051.5,0.54999918]
[1773342061224,0.59087298,2052.9,2051.7,0.54999918]
[1773342061430,0.59087298,2053.9,2052.2,0.54999918]
[1773342061630,0.59087298,2053.7,2052.2,0.54999918]
[1773342061835,0.59087298,2053.7,2052.5,0.54999918]
[1773342062331,0.59087298,2053.1,2052.3,0.54999918]
[1773342062626,0.59087298,2053.1,2052.3,0.52799918]
[1773342063235,3.44554266,2053.1,2052.3,0.022]
[1773342063435,0.59087298,2052.5,2051.9,0.022]
[1773342064427,0.59087298,2052.5,2051.9,0.00560841]
[1773342064635,0.59087298,2052.1,2051.7,0.022]
[1773342064833,0.59087298,2052.1,2051.5,0.022]
[1773342065133,0.67887298,2052.1,2051.5,0.022]
[1773342065335,0.59087298,2051.9,2051.3,0.022]
[1773342065535,0.59087298,2052.0,2051.1,0.57199918]
[1773342065730,0.59087298,2051.9,2051.1,0.02669504]
[1773342065933,0.59087298,2051.9,2051.1,0.57669422]
[1773342066132,0.59087298,2051.5,2051.1,5.04e-06]
[1773342066334,0.59087298,2051.5,2050.9,0.57199918]
[1773342066733,0.59478452,2052.0,2050.9,0.57199918]
[1773342066939,0.59087298,2051.9,2050.9,0.022]
[1773342067441,0.59087298,2051.6,2050.9,0.02635212]
[1773342068535,0.59087298,2051.6,2050.9,0.5763513]
[1773342068734,0.59087298,2051.7,2050.9,0.5763513]
[1773342069437,0.59087298,2051.7,2050.9,0.02635212]
[1773342070139,3.44554266,2051.7,2050.9,0.02635212]
[1773342070436,0.59087298,2051.6,2050.9,0.02635212]
[1773342071032,0.59087298,2051.3,2050.7,0.022]
[1773342071335,0.59087298,2051.1,2050.5,0.022]
[1773342071536,0.59087298,2051.1,2050.5,0.57199918]
[1773342072142,0.59087298,2051.1,2050.5,0.02553182]
[1773342072339,0.59087298,2051.1,2050.3,0.022]
[1773342072544,0.59087298,2051.3,2050.3,0.57199918]
[1773342073544,0.59087298,2051.3,2050.3,0.57398064]
[1773342074535,0.00391154,2052.0,2051.1,0.54999918]
[1773342074734,0.00391154,2052.0,2051.0,2.85466968]
[1773342074735,0.00391154,2052.0,2051.3,0.54999918]
[1773342074935,0.57278452,2052.3,2051.8,0.022]
[1773342075137,6.62957,2052.7,2051.8,0.022]
[1773342075138,0.3438161,2052.6,2051.8,0.022]
[1773342075538,0.00391154,2052.1,2051.8,0.57199918]
[1773342075840,0.3438161,2052.5,2051.8,0.54999918]
[1773342076041,0.35003276,2052.5,2051.8,0.55589218]
[1773342076236,0.35003276,2052.5,2051.8,0.005893]
[1773342076544,0.35003276,2052.5,2051.3,0.54999918]
[1773342077242,0.2436,2052.4,2051.3,0.54999918]
[1773342077441,0.3498149,2052.3,2051.3,0.54999918]
[1773342077640,0.36790336,2052.3,2051.6,0.022]
[1773342078035,0.3498149,2052.1,2051.4,0.022]
[1773342078245,0.3498149,2051.9,2051.4,0.022]
[1773342078645,0.04008846,2052.0,2051.2,0.022]
[1773342078646,0.3498149,2051.7,2051.2,0.022]
[1773342078847,0.3498149,2051.7,2051.2,0.57199918]
[1773342079246,0.3498149,2051.7,2051.2,0.022]
[1773342079448,0.3498149,2051.7,2051.2,0.57199918]
[1773342080050,0.06208846,2051.8,2051.2,0.57199918]
[1773342082850,0.40479969,2051.8,2051.2,0.022]
[1773342083046,0.42682008,2051.7,2051.0,0.60535889]
[1773342083350,0.34273162,2051.5,2050.8,0.60535889]
[1773342085756,0.34273162,2051.5,2050.8,0.022]
[1773342086252,0.43846584,2051.6,2050.8,0.60535889]
[1773342086553,0.33237738,2051.5,2050.8,0.022]
[1773342087450,0.10608846,2051.6,2050.8,0.60535889]
[1773342087654,0.33200355,2051.5,2050.8,0.60535889]
[1773342089653,0.32905118,2051.3,2050.6,0.022]
[1773342090356,0.32905118,2051.3,2050.6,0.60535889]
[1773342090856,0.32905118,2051.3,2050.2,0.022]
[1773342091159,0.32787804,2050.6,2050.0,0.60535889]
[1773342091350,0.33278415,2050.6,2050.0,0.62735889]
[1773342091756,0.33278415,2050.6,2050.0,0.044]
[1773342092253,0.32787804,2050.3,2049.8,0.022]
[1773342092557,0.32787804,2050.5,2049.8,0.60535889]
[1773342093753,0.00490611,2050.6,2049.8,0.60535889]
[1773342093957,0.21608846,2051.0,2050.0,0.58335889]
[1773342094252,0.52148967,2051.8,2050.4,0.58335889]
[1773342094854,0.49948967,2051.8,2051.6,0.022]
[1773342095053,0.48547923,2051.8,2051.6,0.00357456]
[1773342095358,0.48547923,2051.8,2051.2,0.60535889]
[1773342095561,0.066,2051.7,2051.2,0.60535889]
[1773342095857,0.53865384,2051.7,2051.2,0.022]
[1773342096258,0.53865384,2051.7,2051.2,0.02333155]
[1773342096558,0.066,2051.7,2051.2,0.60669044]
[1773342100957,0.55351677,2051.7,2051.2,0.60669044]
[1773342101658,0.79293159,2051.6,2051.0,0.022]
[1773342101861,0.46124159,2051.5,2051.0,0.60535889]
[1773342102062,0.33169,2051.6,2051.0,0.60535889]
[1773342102651,0.79229058,2051.6,2051.0,0.60535889]
[1773342102861,0.46060058,2051.5,2051.0,0.022]
[1773342103566,0.46060058,2051.5,2051.0,0.57256954]
[1773342103860,0.57060058,2051.5,2050.8,0.022]
[1773342104962,0.45173097,2051.3,2050.8,0.022]
[1773342106760,0.45173097,2051.3,2050.6,0.022]
[1773342108167,0.45173097,2051.3,2050.6,0.57256954]
[1773342111363,0.43894602,2050.9,2050.4,0.022]
[1773342112067,0.43894602,2050.9,2050.4,0.57691864]
[1773342112265,0.43894602,2050.9,2050.4,0.022]
[1773342112466,0.43894602,2050.9,2050.2,0.022]
[1773342113060,0.44135842,2050.7,2050.2,0.022]
[1773342113265,0.44135842,2050.7,2050.0,0.57691864]
[1773342116466,0.44135842,2050.7,2050.0,0.022]
[1773342116670,0.43718132,2050.5,2050.0,0.022]
[1773342116864,0.43718132,2050.5,2049.8,0.57691864]
[1773342117561,0.43718132,2050.5,2049.8,0.022]
[1773342118170,0.43718141,2050.7,2049.8,0.57691864]
[1773342119267,0.24381,2050.6,2049.8,0.57691864]
[1773342119468,0.43553619,2050.5,2049.8,0.022]
[1773342119966,0.43553619,2050.5,2049.8,0.57691864]
[1773342120569,0.43553619,2050.8,2049.8,0.57691864]
[1773342123867,0.2438,2050.7,2049.8,0.57691864]
[1773342124174,0.44470373,2050.6,2049.8,0.57691864]
[1773342124670,0.66470373,2051.0,2049.8,0.57691864]
[1773342125070,0.22,2051.0,2050.1,0.55491864]
[1773342125462,0.43912402,2050.9,2050.1,0.55491864]
[1773342126572,0.24379,2050.8,2050.1,0.55491864]
[1773342126774,0.43912402,2050.5,2049.8,0.022]
[1773342126970,0.43912402,2050.5,2049.6,0.022]
[1773342127167,0.43912402,2050.5,2049.6,0.57691864]
[1773342127770,0.4377206,2050.1,2049.6,0.022]
[1773342128073,0.44117636,2050.1,2049.6,0.022]
[1773342128270,0.00345576,2050.1,2049.6,0.57691864]
[1773342129270,0.44128957,2050.1,2049.6,0.57691864]
[1773342131678,0.00345576,2050.1,2049.6,0.57691864]
[1773342131979,0.44029086,2050.1,2049.6,0.57691864]
[1773342132275,0.00345576,2050.1,2049.6,0.57691864]
[1773342132576,0.44029086,2050.1,2049.6,0.57691864]
[1773342133273,0.44029086,2050.1,2049.4,0.57691864]
[1773342135872,0.43422397,2049.9,2049.4,0.022]
[1773342136176,0.41222397,2049.7,2049.2,0.57691864]
[1773342137981,0.24391,2049.8,2049.2,0.57691864]
[1773342138580,0.66011048,2049.8,2049.2,0.57691864]
[1773342139282,0.28695535,2050.0,2049.2,0.57691864]
[1773342139488,0.41688446,2050.0,2049.2,0.57691864]
[1773342140377,0.00345576,2050.1,2049.2,0.57691864]
[1773342145786,0.41952985,2050.1,2049.2,0.57691864]
[1773342146587,0.00345576,2050.1,2049.2,0.57691864]
[1773342147490,0.41940798,2050.1,2049.2,0.57691864]
[1773342147986,0.24389,2050.0,2049.2,0.57691864]
[1773342148193,0.41595222,2049.9,2049.2,0.57691864]
[1773342148596,0.24389,2050.0,2049.2,0.57691864]
[1773342148889,0.41940798,2050.1,2049.2,0.57691864]
[1773342149090,0.00345576,2050.1,2049.2,0.57691864]
[1773342152595,0.41134968,2050.1,2049.2,0.57691864]
[1773342153889,0.41309307,2049.6,2048.8,0.022]
[1773342154096,0.39109307,2049.4,2048.6,0.57047747]
[1773342154297,0.39109307,2049.2,2048.6,0.57047747]
[1773342156198,0.39190553,2049.4,2048.6,0.57047747]
[1773342157297,6.42098184,2049.4,2048.6,0.57047747]
[1773342157499,0.39190553,2049.4,2048.6,0.57047747]
[1773342161302,6.4665371,2049.6,2048.6,0.57047747]
[1773342161503,0.38525102,2050.0,2048.8,0.54847747]
[1773342161700,0.38870678,2050.1,2049.0,0.54847747]
[1773342161994,0.38525102,2050.0,2049.0,0.54847747]
[1773342162398,0.38475847,2049.8,2049.0,0.54847747]
[1773342166597,0.24392,2049.7,2049.0,0.54847747]
[1773342166802,0.3948587,2049.6,2049.0,0.54847747]
[1773342169298,6.63392,2049.7,2049.0,0.54847747]
[1773342169491,7.03103739,2049.7,2049.0,0.54847747]
[1773342169696,0.39711739,2049.6,2049.0,0.54847747]
[1773342173302,0.39711739,2049.6,2048.7,0.54096063]
[1773342173699,0.37943132,2049.4,2048.7,0.54096063]
[1773342174904,0.35684498,2048.8,2048.4,0.022]
[1773342175106,0.35684498,2048.8,2048.4,0.56296063]
[1773342176109,0.60086498,2048.9,2048.4,0.56296063]
[1773342176410,0.24402,2048.9,2048.4,0.56296063]
[1773342177508,0.60336861,2048.9,2048.4,0.56296063]
[1773342178212,6.74934861,2049.1,2048.4,0.56296063]
[1773342178908,0.35934861,2049.0,2048.4,0.56296063]
[1773342180211,0.35891049,2048.9,2048.4,0.022]
[1773342180607,0.35891049,2048.9,2048.4,0.56296063]
[1773342180907,0.35891049,2048.3,2047.8,0.022]
[1773342181101,0.34129545,2048.2,2047.6,0.56296063]
[1773342182006,0.34129545,2048.1,2047.6,0.56296063]
[1773342183213,0.00429197,2048.3,2047.6,0.56296063]
[1773342183703,0.63561792,2048.6,2047.6,0.56296063]
[1773342184610,6.73256105,2048.8,2047.6,0.56296063]
[1773342184806,0.00433022,2048.6,2047.6,0.5672526]
[1773342186409,0.35253424,2048.6,2047.6,0.5672526]
[1773342187909,0.00433022,2048.6,2047.6,0.5672526]
[1773342188704,0.00433022,2048.6,2047.8,0.54096063]
[1773342188914,0.35572451,2049.1,2047.9,0.54096063]
[1773342189210,0.35572451,2049.0,2047.9,0.54096063]
[1773342190216,0.36097276,2049.0,2047.9,0.54096063]
[1773342192418,0.24402,2048.9,2047.9,0.54096063]
[1773342192616,0.35376251,2048.7,2047.9,0.54096063]
[1773342193715,0.35642316,2048.9,2047.9,0.54096063]
[1773342194017,0.00524825,2049.0,2048.0,0.54096063]
[1773342194018,0.36167141,2049.0,2048.0,0.54096063]
[1773342195721,0.35948955,2048.7,2048.0,0.54096063]
[1773342196322,0.24405,2048.6,2048.0,0.54096063]
[1773342197123,0.35948955,2048.7,2048.0,0.54096063]
[1773342197329,0.36031871,2048.9,2048.0,0.54096063]
[1773342198823,0.00524825,2049.0,2048.0,0.54096063]
[1773342199214,0.33773269,2049.0,2048.0,0.54096063]
[1773342200718,0.33261926,2048.7,2048.0,0.54096063]
[1773342204317,0.24405,2048.6,2048.0,0.54096063]
[1773342204522,0.3505537,2048.5,2048.0,0.54096063]
[1773342206324,0.3505537,2048.5,2047.8,0.55868915]
[1773342208128,0.24405,2048.6,2047.8,0.55868915]
[1773342208627,6.39,2048.7,2047.8,0.55868915]
[1773342209128,6.73052485,2048.7,2047.8,0.55868915]
[1773342209528,4.3761765,2048.9,2047.8,0.55868915]
[1773342209828,6.08633554,2048.8,2047.8,0.55868915]
[1773342210029,4.62543475,2049.0,2047.8,0.55868915]
[1773342210220,6.08651129,2048.9,2047.8,0.55868915]
[1773342210424,6.42703614,2048.9,2047.8,0.55868915]
[1773342210626,6.08651129,2048.9,2047.8,0.55868915]
[1773342210931,6.42703614,2048.9,2047.8,0.55868915]
[1773342211125,0.34052485,2048.9,2047.8,0.55868915]
[1773342211431,0.00524825,2049.0,2048.2,0.55868915]
[1773342212224,0.34720659,2049.0,2048.2,0.55868915]
[1773342213028,0.00524825,2049.0,2048.2,0.55868915]
[1773342215734,0.35030929,2049.0,2048.2,0.55868915]
[1773342216235,0.00524825,2049.0,2048.2,0.55868915]
[1773342219335,0.35691153,2049.0,2048.2,0.55868915]
[1773342219935,0.00524825,2049.0,2048.2,0.55868915]
[1773342221429,6.44485275,2049.3,2048.2,0.55868915]
[1773342221736,0.35829457,2049.5,2048.3,0.55868915]
[1773342221936,6.45052059,2049.5,2048.3,0.55868915]
[1773342222739,0.0043549,2049.5,2048.5,0.58697043]
[1773342223442,0.36289109,2049.5,2048.5,0.58697043]
[1773342226035,0.36206666,2049.4,2048.5,0.58697043]
[1773342229145,0.0043549,2049.5,2048.5,0.58697043]
[1773342229441,0.82239698,2049.9,2048.7,0.58697043]
[1773342229836,0.82239698,2049.9,2048.3,0.2424207]
[1773342229837,0.462,2049.9,2048.9,0.58697043]
[1773342230036,0.36475188,2049.8,2048.9,0.58697043]
[1773342230441,0.36824312,2049.8,2048.9,0.58697043]
[1773342240249,0.24392,2049.7,2048.9,0.58697043]
[1773342240554,0.36961477,2049.6,2048.9,0.58697043]
[1773342240754,0.61353477,2049.7,2048.9,0.58697043]
[1773342241156,0.36616869,2049.6,2048.9,0.58697043]
[1773342242652,0.36965993,2049.8,2048.9,0.58697043]
[1773342243057,0.00349124,2049.8,2048.9,0.58697043]
[1773342243752,0.36754647,2049.8,2048.9,0.58697043]
[1773342245156,0.00349124,2049.8,2048.9,0.58697043]
[1773342245357,0.462,2049.9,2049.0,0.54812248]
[1773342245562,0.80385922,2050.5,2049.2,0.54812248]
[1773342245761,0.80385922,2050.5,2048.9,2.85629514]
[1773342245762,0.56002922,2050.5,2049.4,0.54812248]
[1773342245959,0.53802922,2050.5,2050.1,0.57012248]
[1773342246356,0.54291419,2050.5,2050.1,0.0279948]
[1773342246556,0.58691419,2050.5,2050.1,0.0279948]
[1773342246859,0.58691419,2050.5,2050.1,0.57611728]
[1773342249665,0.58691419,2050.5,2050.1,0.0279948]
[1773342250761,0.58691419,2050.5,2050.1,0.57611728]
[1773342252461,6.08406037,2050.9,2050.1,0.57611728]
[1773342252662,4.03565165,2051.1,2050.1,0.55411728]
[1773342252663,0.56002922,2051.1,2050.1,0.55411728]
[1773342252961,0.53802922,2051.1,2050.5,0.022]
[1773342253164,0.56002922,2050.9,2050.3,0.022]
[1773342253361,0.56002922,2050.9,2050.3,0.57012248]
[1773342253667,0.63194335,2050.9,2050.3,0.57012248]
[1773342253861,0.07191413,2050.9,2050.3,0.57012248]
[1773342254263,0.63194335,2050.9,2050.3,0.57012248]
[1773342254463,0.56002922,2050.7,2050.1,0.57611728]
[1773342258171,0.088,2050.8,2050.1,0.57611728]
[1773342258367,0.64802922,2050.8,2050.1,0.57611728]
[1773342263279,0.088,2050.8,2050.1,0.57611728]
[1773342264475,0.00591413,2050.9,2050.1,0.79798728]
[1773342264671,0.00591413,2050.9,2050.2,0.56008897]
[1773342264874,0.56372376,2051.0,2050.7,0.022]
[1773342265273,0.56372376,2051.0,2050.5,0.58208897]
[1773342265466,0.57980963,2050.8,2050.5,0.58208897]
[1773342265875,0.58441914,2050.8,2050.5,0.58208897]
[1773342266975,0.00460951,2050.8,2050.5,0.58208897]
[1773342270682,0.07060951,2050.8,2050.3,0.58208897]
[1773342271185,0.29670323,2051.2,2050.3,0.58208897]
[1773342271186,0.57980963,2051.2,2050.3,0.56008897]
[1773342271382,6.96880963,2051.4,2050.3,0.56008897]
[1773342271579,0.57980963,2051.6,2050.7,0.56008897]
[1773342272081,0.022,2051.5,2050.7,0.56008897]
[1773342272280,0.60180963,2051.5,2050.7,0.56008897]
[1773342272489,0.57980963,2051.4,2050.5,0.56008897]
[1773342272682,0.57980963,2051.2,2050.5,0.56008897]
[1773342272983,0.57980963,2051.4,2050.5,0.56008897]
[1773342274383,0.60180963,2051.5,2050.5,0.56008897]
[1773342274588,0.022,2051.5,2050.5,0.56008897]
[1773342274886,0.60180963,2051.5,2050.6,0.56008897]
[1773342279982,0.57980963,2051.4,2050.6,0.56008897]
[1773342280988,0.60180963,2051.5,2050.6,0.56008897]
[1773342281190,0.022,2051.5,2050.6,0.56008897]
[1773342281987,0.55041977,2051.3,2050.6,0.56008897]
[1773342282588,0.55041977,2051.1,2050.6,0.56008897]
[1773342282791,0.55041977,2051.1,2050.2,0.58576966]
[1773342283693,0.55041977,2051.0,2050.2,0.58576966]
[1773342290196,0.79415977,2051.2,2050.2,0.58576966]
[1773342290598,0.24374,2051.2,2050.2,0.58576966]
[1773342290900,0.78727137,2051.2,2050.2,0.58576966]
[1773342291103,6.87891787,2051.2,2050.2,0.58576966]
[1773342291301,0.78727137,2051.2,2050.2,0.58576966]
[1773342291800,0.54353137,2051.1,2050.2,0.58576966]
[1773342297399,0.54353137,2051.0,2050.2,0.58576966]
[1773342297904,0.54353137,2050.8,2050.2,0.58576966]
[1773342300402,0.54353137,2050.5,2049.5,0.57912314]
[1773342300699,0.54353137,2050.3,2049.5,0.57912314]
[1773342300899,0.54353137,2050.1,2049.5,0.26061786]
[1773342301093,0.54353137,2050.1,2049.1,0.57912314]
[1773342301405,0.54878483,2050.1,2049.1,0.58320654]
[1773342301602,0.54353137,2050.0,2049.1,0.58320654]
[1773342302397,0.54353137,2049.8,2049.1,0.0040834]
[1773342302600,0.54353137,2049.7,2048.9,0.57912314]
[1773342303502,0.54353137,2049.7,2048.9,0.5832896]
[1773342304705,0.54353137,2049.7,2048.9,0.00416646]
[1773342304706,0.54353137,2049.5,2048.9,0.00416646]
[1773342305498,0.54353137,2049.5,2048.9,0.5832896]
[1773342307405,0.54353137,2049.5,2048.9,0.00416646]
[1773342308910,0.54353137,2049.5,2048.9,0.5832896]
[1773342313013,0.54353137,2049.5,2048.9,0.00416646]
[1773342315427,0.54353137,2049.7,2049.0,0.57912314]
[1773342315620,0.54353137,2049.6,2048.9,0.5832896]
[1773342315822,0.54353137,2049.4,2048.9,0.00416646]
[1773342316327,0.54353137,2049.4,2048.9,0.5832896]
[1773342317125,0.54353137,2049.6,2048.9,0.5832896]
[1773342320127,0.54353137,2049.9,2048.9,0.5832896]
[1773342325131,0.54353137,2049.9,2049.0,0.58908471]
[1773342328229,6.07920802,2050.6,2049.5,0.58908471]
[1773342328431,0.55078838,2050.5,2049.6,0.58908471]
[1773342328829,9.58346972,2050.4,2049.6,0.58908471]
[1773342329036,0.55078838,2050.3,2049.6,0.58908471]
[1773342329736,0.55544544,2050.3,2049.6,0.58908471]
[1773342332337,0.55078838,2050.1,2049.6,0.58908471]
[1773342332546,0.55078838,2050.1,2049.1,0.58908471]
[1773342332840,0.55078838,2049.9,2049.1,0.58908471]
[1773342333835,0.55078838,2049.7,2049.1,0.58908471]
[1773342334738,0.55078838,2050.1,2049.1,0.58908471]
[1773342334938,0.55078838,2050.0,2049.1,0.58908471]
[1773342335350,9.03268134,2049.9,2049.1,0.58908471]
[1773342336348,0.55078838,2049.8,2049.1,0.58908471]
[1773342337043,9.58346972,2049.7,2049.1,0.58908471]
[1773342337245,0.55078838,2049.7,2049.1,0.58908471]
[1773342337743,0.55078838,2049.5,2049.1,0.58908471]
[1773342337943,0.55078838,2049.5,2048.9,0.59325117]
[1773342339850,0.55078838,2049.7,2048.9,0.59325117]
[1773342340446,0.55078838,2050.0,2049.1,3.09720498]
[1773342340641,0.59639587,2050.1,2049.1,10.7390616]
[1773342340845,0.59639587,2050.1,2049.1,7.88584662]
[1773342341042,0.00465706,2050.3,2049.5,0.58908471]
[1773342341349,0.61839587,2051.5,2050.1,0.24387]
[1773342341648,0.59639587,2051.3,2050.2,6.39]
[1773342341852,0.59639587,2051.1,2049.9,7.6268048]
[1773342342146,0.60056181,2051.1,2050.0,0.43327722]
[1773342342452,0.73345736,2050.9,2050.0,0.43327722]
[1773342342750,0.73345736,2050.7,2049.8,0.41803429]
[1773342343143,0.73345736,2050.5,2049.8,0.41803429]
[1773342345455,2.52933669,2050.4,2049.8,0.41803429]
[1773342345756,0.73345736,2050.3,2049.5,0.416701]
[1773342345949,0.73345736,2050.3,2049.4,6.39]
[1773342346150,0.73345736,2050.1,2049.3,0.41456031]
[1773342346455,0.73345736,2050.0,2049.1,0.41172189]
[1773342346657,0.73345736,2049.9,2049.1,0.41172189]
[1773342347853,3.26279405,2049.8,2049.1,0.41172189]
[1773342348148,0.73345736,2049.8,2049.1,0.41172189]
[1773342348348,3.26279405,2049.7,2049.1,0.41172189]
[1773342348548,0.73345736,2049.7,2049.1,0.41172189]
[1773342350153,0.73345736,2050.0,2049.1,0.41172189]
[1773342350354,0.7681442,2050.2,2049.2,0.02402912]
[1773342350563,0.7681442,2050.4,2049.4,0.02402912]
[1773342350957,2.11650312,2050.3,2049.6,0.02402912]
[1773342351253,2.11650312,2050.3,2049.7,0.03115257]
[1773342351455,1.3932393,2050.3,2049.7,0.03115257]
[1773342351655,0.78167733,2050.5,2049.7,0.03115257]
[1773342353064,0.78150912,2050.3,2049.7,0.03115257]
[1773342353858,0.78238291,2050.1,2049.5,6.43296299]
[1773342354558,0.24792594,2051.1,2049.6,0.04491053]
[1773342354559,2.17301604,2050.0,2049.6,0.04491053]
[1773342354860,0.77977674,2050.2,2049.6,0.04491053]
[1773342355663,1.35260277,2050.1,2049.6,0.04491053]
[1773342355857,0.7802748,2050.4,2049.6,0.04491053]
[1773342356063,1.35260277,2050.3,2049.6,0.04491053]
[1773342356362,2.15337525,2050.3,2049.6,0.04491053]
[1773342356562,0.80077248,2050.2,2049.6,0.04491053]
[1773342357354,1.35260277,2050.3,2049.6,0.04491053]
[1773342357554,1.35260277,2050.2,2049.6,0.04491053]
[1773342358565,1.35260277,2050.2,2049.6,7.6268048]
[1773342358766,0.56020395,2050.2,2049.7,7.6268048]
[1773342359766,0.80215505,2051.0,2049.7,7.6268048]
[1773342359968,0.80215505,2050.7,2049.7,7.6268048]
[1773342360266,0.80215505,2050.7,2049.8,0.03810861]
[1773342360566,0.46099683,2050.6,2049.8,0.03810861]
[1773342361362,0.79892401,2050.9,2050.0,0.04831817]
[1773342361657,0.00416594,2051.1,2050.2,7.8706648]
[1773342361658,0.82724904,2051.1,2050.2,7.8706648]
[1773342361864,0.82724904,2051.1,2050.2,7.6268048]
[1773342362063,0.82724904,2051.1,2050.3,6.39]
[1773342362366,0.82724904,2051.1,2050.4,6.389]
[1773342362559,0.82724904,2051.1,2050.4,6.39628918]
[1773342362760,0.82724904,2051.1,2050.2,6.39]
[1773342363669,0.82724904,2051.1,2050.2,6.39381994]
[1773342364465,0.82724904,2051.1,2050.3,0.02393616]
[1773342365062,0.82724904,2051.1,2050.2,6.39381994]
[1773342365272,0.82724904,2051.1,2050.2,6.40521422]
[1773342366970,0.82518551,2050.9,2050.2,0.00381994]
[1773342367770,0.82327554,2050.7,2049.7,6.39922857]
[1773342368070,0.82327554,2050.7,2049.8,0.01022857]
[1773342368676,0.82327554,2050.7,2049.9,0.00609669]
[1773342370173,0.00416594,2051.1,2049.9,0.00609669]
[1773342370377,0.00416594,2051.1,2050.0,7.6268048]
[1773342370378,0.82268867,2051.0,2050.0,7.6268048]
[1773342371081,0.82268867,2051.0,2050.0,0.0037688]
[1773342371878,0.00416594,2051.1,2050.5,0.24383]
[1773342372085,0.82538881,2051.1,2050.2,7.6268048]
[1773342372279,0.82538881,2051.1,2050.3,6.389]
[1773342372481,0.82538881,2051.1,2050.3,14.0158048]
[1773342372878,0.00416594,2051.1,2050.3,14.0158048]
[1773342373183,0.00416594,2051.1,2050.4,7.8706448]
[1773342373382,0.00416594,2051.1,2050.4,0.24384]
[1773342375183,0.82776904,2051.1,2050.3,14.0158048]
[1773342375484,0.82776904,2051.1,2050.2,0.24439133]
[1773342375485,0.82776904,2051.1,2050.4,6.388]
[1773342375686,1.07151904,2051.1,2050.2,7.87119613]
[1773342375881,0.8236031,2051.0,2050.2,0.24439133]
[1773342376186,0.82380545,2050.8,2050.1,6.388]
[1773342376382,0.82380545,2050.8,2049.8,0.00619467]
[1773342376383,0.82380545,2050.8,2050.0,6.388]
[1773342377180,0.82818502,2050.4,2049.4,14.0148048]
[1773342377482,0.82818502,2050.4,2049.0,0.244]
[1773342377483,0.82818502,2050.4,2049.5,6.388]
[1773342377679,0.82818502,2050.4,2049.6,6.388]
[1773342378384,0.82818502,2050.4,2049.6,6.3915944]
[1773342381681,0.82551144,2050.9,2049.6,6.3915944]
[1773342381886,0.82551144,2050.9,2049.7,7.6268048]
[1773342382679,0.82551144,2050.9,2049.8,7.6268048]
[1773342382885,0.82551144,2050.9,2049.9,7.6268048]
[1773342383285,0.82551144,2050.9,2050.0,6.389]
[1773342388293,0.82551144,2050.9,2050.0,14.0158048]
[1773342388482,0.85085648,2051.1,2050.1,0.24387]
[1773342388688,0.00416594,2051.1,2050.2,7.6268048]
[1773342389492,0.00416594,2051.1,2050.3,6.389]
[1773342389493,0.8507362,2051.1,2050.3,6.389]
[1773342390895,0.8507362,2051.1,2050.1,7.6268048]
[1773342391092,0.8507362,2051.1,2050.1,6.388]
[1773342391300,0.8507362,2051.1,2049.7,10.21976012]
[1773342391301,0.85605152,2050.9,2049.9,6.388]
[1773342391592,0.85605152,2050.7,2049.6,7.6303992]
[1773342391793,0.85605152,2050.3,2049.6,0.0035944]
[1773342391997,0.85605152,2050.1,2049.6,0.0035944]
[1773342392398,0.85438167,2049.9,2049.0,6.388]
[1773342392592,0.85438167,2049.9,2048.9,7.6268048]
[1773342393094,0.85438167,2049.9,2048.8,7.6268048]
[1773342393294,0.85438167,2049.9,2048.8,0.00633572]
[1773342399704,0.85438167,2049.9,2048.9,0.24402]
[1773342399905,0.84189847,2050.1,2048.9,0.24402]
[1773342400800,0.84189847,2050.1,2048.9,10.72458524]
[1773342401001,0.84272201,2050.7,2049.2,0.24398]
[1773342401202,0.84272201,2050.7,2049.3,6.39]
[1773342405811,0.84272201,2050.7,2049.3,6.63281473]
[1773342406306,0.84272201,2050.7,2049.4,0.24396]
[1773342407203,0.84272201,2050.7,2049.4,7.8707648]
[1773342410707,0.8527631,2050.5,2049.3,7.86961953]
[1773342411007,0.8527631,2050.5,2049.5,6.39]
[1773342411704,0.8527631,2050.5,2049.6,6.39]
[1773342417012,0.84838764,2050.9,2049.6,6.39]
[1773342417214,0.84838764,2050.9,2049.6,6.63282797]
[1773342417412,0.84838764,2050.9,2049.6,6.87674797]
[1773342418108,0.84838764,2050.9,2049.7,2.8545972]
[1773342418516,0.84838764,2050.9,2049.8,0.24391]
[1773342418716,0.84838764,2050.9,2050.0,2.8545972]
[1773342418906,0.84838764,2050.9,2049.9,7.6268048]
[1773342419113,0.84838764,2050.9,2050.0,6.39]
[1773342421010,0.87664247,2051.1,2050.1,0.24387]
[1773342421218,0.87247653,2051.0,2049.9,7.6268048]
[1773342421416,0.87247653,2051.0,2050.0,6.389]
[1773342421816,0.87664247,2051.1,2050.0,6.389]
[1773342423011,0.88175771,2050.9,2049.8,7.6268048]
[1773342423320,0.88175771,2050.9,2049.9,6.389]
[1773342423517,0.88175771,2050.9,2050.0,6.389]
[1773342425918,0.88145833,2050.5,2049.8,0.23917072]
[1773342426218,0.88145833,2050.3,2049.7,6.389]
[1773342426417,0.88145833,2050.3,2049.6,6.389]
[1773342428826,0.88145833,2050.3,2049.1,0.24399]
[1773342428827,0.87939854,2049.9,2049.0,7.6268048]
[1773342429020,0.87939854,2049.7,2048.8,14.02214052]
[1773342429626,0.87939854,2049.7,2048.8,6.39533572]
[1773342430222,0.87939854,2049.7,2048.8,0.00633572]
[1773342430419,0.87939854,2049.7,2048.9,6.389]
[1773342430621,0.8900154,2049.5,2048.8,6.39533572]